bitfinex/quotes_BTCUSD_20250219
["timestamp","ask_amount","ask_price","bid_price","bid_amount"]
[1739927026371,0.32835264,95492.0,95491.0,0.00042599]
[1739927027309,0.15,95491.0,95482.0,4e-07]
[1739927027524,0.307096,95483.0,95482.0,8.2e-07]
[1739927027724,0.157114,95472.0,95471.0,0.0002]
[1739927027936,0.157114,95472.0,95471.0,0.00024387]
[1739927028552,0.17353693,95472.0,95471.0,0.00024387]
[1739927028764,0.20089502,95472.0,95471.0,0.00024387]
[1739927029423,0.20389502,95472.0,95471.0,0.00024387]
[1739927029642,0.35389502,95472.0,95471.0,0.00024387]
[1739927032238,0.35089502,95472.0,95471.0,0.00024387]
[1739927032437,0.35389502,95472.0,95471.0,0.00024387]
[1739927032638,0.33747209,95472.0,95471.0,0.00024387]
[1739927032853,0.33447209,95472.0,95471.0,0.00024387]
[1739927033486,0.34233464,95472.0,95471.0,0.00024387]
[1739927033691,0.34533464,95472.0,95471.0,0.00024387]
[1739927033892,0.34233464,95472.0,95471.0,0.00024387]
[1739927034117,0.34533464,95472.0,95471.0,0.00024387]
[1739927035841,0.36175786,95472.0,95471.0,0.00024387]
[1739927036404,0.49310197,95472.0,95471.0,0.00024387]
[1739927036822,0.43835786,95472.0,95471.0,0.00024387]
[1739927037239,0.28124386,95472.0,95446.0,0.16224464]
[1739927037448,0.307125,95465.0,95464.0,0.00051238]
[1739927038324,0.307125,95465.0,95464.0,0.01961246]
[1739927040032,0.15,95466.0,95464.0,0.01961246]
[1739927040238,0.157125,95465.0,95464.0,0.01961246]
[1739927040452,0.159125,95465.0,95464.0,0.01961246]
[1739927040667,0.157125,95465.0,95464.0,0.01961246]
[1739927041091,0.159125,95465.0,95464.0,0.01961246]
[1739927042293,0.157125,95465.0,95464.0,0.01961246]
[1739927042776,0.158125,95465.0,95464.0,0.01961246]
[1739927042987,0.157125,95465.0,95464.0,0.01961246]
[1739927043217,0.158125,95465.0,95464.0,0.01961246]
[1739927046138,0.174549,95465.0,95464.0,0.01961246]
[1739927048994,0.174549,95465.0,95464.0,0.1213571]
[1739927049189,0.017424,95465.0,95464.0,0.2027571]
[1739927049963,0.016424,95465.0,95464.0,0.2485571]
[1739927052082,0.0172754,95465.0,95464.0,0.2485571]
[1739927052308,0.0008514,95465.0,95464.0,0.2485571]
[1739927054829,0.1579764,95465.0,95464.0,0.2485571]
[1739927055800,0.01727433,95465.0,95464.0,0.2485571]
[1739927057164,0.17439933,95465.0,95464.0,0.2485571]
[1739927058010,0.01727433,95465.0,95464.0,0.2485571]
[1739927059458,0.01727433,95465.0,95464.0,0.2588841]
[1739927060669,0.01727433,95465.0,95464.0,0.2818841]
[1739927061357,0.01727433,95465.0,95464.0,0.4390111]
[1739927061612,0.01727433,95465.0,95464.0,0.2818841]
[1739927061931,0.01727433,95465.0,95464.0,0.43901151]
[1739927062570,0.01727433,95465.0,95464.0,0.44001151]
[1739927063212,0.0008514,95465.0,95464.0,0.44001151]
[1739927065224,0.1579764,95465.0,95464.0,0.26488451]
[1739927065848,0.0008514,95465.0,95464.0,0.26488451]
[1739927065980,0.1579764,95465.0,95464.0,0.26488451]
[1739927066180,0.17439851,95465.0,95464.0,0.26488451]
[1739927066381,0.17439851,95465.0,95464.0,0.28288451]
[1739927067305,0.17439851,95465.0,95464.0,0.26488451]
[1739927067523,0.17439851,95465.0,95464.0,0.28288451]
[1739927068582,0.17439851,95465.0,95464.0,0.26488451]
[1739927068800,0.17439851,95465.0,95464.0,0.28288451]
[1739927071381,0.01727351,95465.0,95464.0,0.28288451]
[1739927072186,0.17439851,95465.0,95464.0,0.28288451]
[1739927074049,0.17439851,95465.0,95464.0,0.27296451]
[1739927074217,0.17439851,95465.0,95464.0,0.17121987]
[1739927074420,0.1579764,95465.0,95464.0,0.18921987]
[1739927074921,0.1579764,95465.0,95464.0,0.17121987]
[1739927075702,0.1579764,95465.0,95464.0,0.17164557]
[1739927076582,0.1579764,95465.0,95464.0,0.18964557]
[1739927076991,0.1579764,95465.0,95464.0,0.17164557]
[1739927078343,0.17439857,95465.0,95464.0,0.17164557]
[1739927078785,0.17439857,95465.0,95464.0,0.18964557]
[1739927080176,0.209492,95469.0,95465.0,0.023]
[1739927080603,0.157124,95466.0,95465.0,0.033327]
[1739927081268,0.157124,95466.0,95465.0,0.051327]
[1739927081654,0.209495,95468.0,95465.0,0.051327]
[1739927081655,0.15712,95468.0,95467.0,0.018]
[1739927082641,0.15712,95468.0,95467.0,0.028327]
[1739927082850,0.15712,95468.0,95467.0,0.029327]
[1739927086993,0.1579714,95468.0,95467.0,0.029327]
[1739927089112,0.17439352,95468.0,95467.0,0.029327]
[1739927089711,0.17439352,95468.0,95467.0,0.011327]
[1739927090175,0.17439352,95468.0,95467.0,0.029327]
[1739927091228,0.17439352,95468.0,95467.0,0.011327]
[1739927091403,0.17439352,95468.0,95467.0,0.029327]
[1739927091805,0.1579714,95468.0,95467.0,0.029327]
[1739927092267,0.1579714,95468.0,95467.0,0.011327]
[1739927092669,0.1579714,95468.0,95467.0,0.029327]
[1739927094363,0.1579714,95468.0,95467.0,0.011327]
[1739927096045,0.1579714,95468.0,95467.0,0.029327]
[1739927096494,0.1579714,95468.0,95467.0,0.011327]
[1739927097891,0.1579714,95468.0,95467.0,0.02101946]
[1739927098676,0.1579714,95468.0,95467.0,0.02144516]
[1739927099137,0.209485,95472.0,95467.0,0.02144516]
[1739927099327,0.15712,95468.0,95467.0,0.0117527]
[1739927099535,0.15712,95468.0,95467.0,0.02144516]
[1739927099670,0.15712,95468.0,95467.0,0.0117527]
[1739927100306,0.15712,95468.0,95467.0,0.02144516]
[1739927100502,0.15712,95468.0,95467.0,0.0117527]
[1739927100909,0.15712,95468.0,95467.0,0.02144516]
[1739927101670,0.15712,95468.0,95467.0,0.0117527]
[1739927101853,0.17354227,95468.0,95467.0,0.0117527]
[1739927102097,0.17354227,95468.0,95467.0,0.02144516]
[1739927103171,0.15712,95468.0,95467.0,0.02144516]
[1739927106452,0.17354262,95468.0,95467.0,0.02144516]
[1739927107075,0.17354262,95468.0,95467.0,0.03944516]
[1739927107276,0.17354262,95468.0,95467.0,0.02144516]
[1739927109803,0.17354262,95468.0,95467.0,0.03944516]
[1739927111156,0.01642262,95468.0,95467.0,0.16504516]
[1739927111372,0.01642262,95468.0,95467.0,0.34516716]
[1739927112907,0.01642262,95468.0,95467.0,0.34416716]
[1739927113121,0.0008514,95470.0,95469.0,0.255619]
[1739927113317,0.0008514,95470.0,95469.0,0.278619]
[1739927113981,0.0008514,95470.0,95469.0,0.288946]
[1739927114204,0.0008514,95470.0,95469.0,0.28894641]
[1739927114419,0.0008514,95470.0,95469.0,0.29194641]
[1739927114746,0.0008514,95470.0,95469.0,0.30163887]
[1739927114967,0.0008514,95470.0,95469.0,0.34673887]
[1739927115835,0.0008514,95470.0,95469.0,0.44624252]
[1739927116267,0.01727074,95470.0,95469.0,0.46924252]
[1739927116460,0.01727074,95470.0,95469.0,0.46624252]
[1739927116682,0.01727074,95470.0,95469.0,0.47024252]
[1739927116903,0.01727074,95470.0,95469.0,1.01594252]
[1739927117125,0.0008512,95482.0,95481.0,0.22779146]
[1739927117339,0.0008512,95482.0,95481.0,0.99949552]
[1739927117543,0.07940912,95520.0,95491.0,0.33627446]
[1739927117757,0.07940912,95520.0,95491.0,1.00747852]
[1739927118815,0.1578736,95528.0,95491.0,1.00747852]
[1739927118816,0.157027,95525.0,95491.0,1.00747852]
[1739927119051,0.12084088,95520.0,95491.0,1.00747852]
[1739927119437,0.157888,95519.0,95491.0,1.00747852]
[1739927119739,0.000852,95519.0,95491.0,1.00747852]
[1739927120084,0.001852,95492.0,95491.0,1.03252567]
[1739927120299,0.000852,95492.0,95491.0,1.02852567]
[1739927120722,0.001852,95492.0,95491.0,1.03352567]
[1739927120925,0.001852,95492.0,95491.0,1.05357474]
[1739927121135,0.001852,95492.0,95491.0,1.02852567]
[1739927121346,0.002852,95492.0,95491.0,1.03352567]
[1739927122685,0.000852,95492.0,95491.0,1.02852567]
[1739927123132,0.000852,95492.0,95491.0,1.05269]
[1739927123315,0.01726642,95492.0,95491.0,1.05269]
[1739927123487,0.01826642,95492.0,95491.0,1.05669]
[1739927126139,0.000852,95492.0,95491.0,1.05269]
[1739927126682,0.001852,95492.0,95491.0,1.05669]
[1739927129001,0.000852,95492.0,95491.0,1.05269]
[1739927129204,0.001852,95492.0,95491.0,1.05669]
[1739927130396,0.01826639,95492.0,95491.0,1.05669]
[1739927132706,0.01726639,95492.0,95491.0,1.05269]
[1739927132911,0.01826639,95492.0,95491.0,1.05669]
[1739927133115,0.001852,95492.0,95491.0,1.05669]
[1739927133558,0.002852,95492.0,95491.0,1.06069]
[1739927136519,0.000852,95519.0,95517.0,0.018]
[1739927136865,0.157047,95513.0,95512.0,0.018]
[1739927137293,0.157047,95513.0,95512.0,0.041]
[1739927137503,0.157044,95515.0,95513.0,0.023]
[1739927137695,0.15714486,95515.0,95514.0,0.041]
[1739927139848,0.15714486,95515.0,95514.0,0.045]
[1739927142341,0.15714486,95515.0,95514.0,0.04356]
[1739927142524,0.15714486,95515.0,95514.0,0.022]
[1739927144641,0.13477435,95516.0,95515.0,0.018]
[1739927144926,0.366431,95516.0,95515.0,0.018]
[1739927145341,0.516431,95516.0,95515.0,0.00869246]
[1739927145554,0.432243,95515.0,95514.0,0.022]
[1739927145729,0.2752,95515.0,95511.0,0.00869246]
[1739927145933,0.15,95507.0,95505.0,0.00010086]
[1739927146108,0.15,95507.0,95505.0,0.00879332]
[1739927146109,0.307058,95506.0,95505.0,0.00879332]
[1739927147023,0.307058,95506.0,95505.0,0.02679332]
[1739927149319,0.32347414,95506.0,95505.0,0.02679332]
[1739927149522,0.32347414,95506.0,95505.0,0.02879332]
[1739927151510,0.32347414,95506.0,95505.0,0.02679332]
[1739927151709,0.32347414,95506.0,95505.0,0.02979332]
[1739927153130,0.307058,95506.0,95505.0,0.02979332]
[1739927156152,0.32347382,95506.0,95505.0,0.02979332]
[1739927157014,0.32347382,95506.0,95505.0,0.02679332]
[1739927158198,0.01641582,95506.0,95505.0,0.02679332]
[1739927158407,0.01641582,95506.0,95505.0,0.26415232]
[1739927159694,0.01641582,95506.0,95505.0,0.10709332]
[1739927160492,0.01641582,95506.0,95505.0,0.10751882]
[1739927161123,0.01641582,95506.0,95505.0,0.26457782]
[1739927161778,0.01641582,95506.0,95505.0,0.28757782]
[1739927162571,0.01641582,95506.0,95505.0,0.28557782]
[1739927162804,0.01641582,95506.0,95505.0,0.28757782]
[1739927163133,0.307045,95514.0,95513.0,0.00869246]
[1739927163379,0.307045,95514.0,95513.0,0.02669246]
[1739927163598,0.15,95514.0,95513.0,0.02669246]
[1739927164029,0.307045,95514.0,95513.0,0.02669246]
[1739927164646,0.12180869,95515.0,95514.0,0.18373746]
[1739927164870,0.0008512,95515.0,95514.0,0.02669246]
[1739927165774,0.0008512,95515.0,95514.0,0.18373746]
[1739927165914,0.0018512,95515.0,95514.0,0.18373746]
[1739927166141,0.01826571,95515.0,95514.0,0.18373746]
[1739927167080,0.01826571,95515.0,95514.0,0.02669246]
[1739927168873,0.01726571,95515.0,95514.0,0.02669246]
[1739927169076,0.01726571,95515.0,95514.0,0.02869246]
[1739927169430,0.01726571,95515.0,95514.0,0.02669246]
[1739927169660,0.01726571,95515.0,95514.0,0.02969246]
[1739927170349,0.32430871,95515.0,95514.0,0.02969246]
[1739927170997,0.16726571,95515.0,95514.0,0.02969246]
[1739927172245,0.32430871,95515.0,95514.0,0.02969246]
[1739927173371,0.32430871,95515.0,95514.0,0.01169246]
[1739927173566,0.3078942,95515.0,95514.0,0.01169246]
[1739927173906,0.3078942,95515.0,95514.0,0.02969246]
[1739927174111,0.3078942,95515.0,95514.0,0.01169246]
[1739927174513,0.3078942,95515.0,95514.0,0.02969246]
[1739927174722,0.3078942,95515.0,95514.0,0.01169246]
[1739927175563,0.3078942,95515.0,95514.0,0.02969246]
[1739927176189,0.32430899,95515.0,95514.0,0.02969246]
[1739927177827,0.32430899,95515.0,95514.0,0.01169246]
[1739927182586,0.32430899,95515.0,95514.0,0.02969246]
[1739927182745,0.32430899,95515.0,95514.0,0.01169246]
[1739927183158,0.3078942,95515.0,95514.0,0.01169246]
[1739927183360,0.3078942,95515.0,95514.0,0.00869246]
[1739927183773,0.3098942,95515.0,95514.0,0.00869246]
[1739927185664,0.3078942,95515.0,95514.0,0.00869246]
[1739927186078,0.3098942,95515.0,95514.0,0.00869246]
[1739927186295,0.32430974,95515.0,95514.0,0.00869246]
[1739927186714,0.32630974,95515.0,95514.0,0.00869246]
[1739927188355,0.157048,95512.0,95511.0,0.00869246]
[1739927188589,0.157058,95506.0,95505.0,0.00052636]
[1739927188827,0.157058,95506.0,95505.0,0.00921882]
[1739927190317,0.157058,95506.0,95505.0,0.01021882]
[1739927192412,0.157058,95506.0,95505.0,0.00921882]
[1739927192620,0.157058,95506.0,95505.0,0.01021882]
[1739927192848,0.307058,95506.0,95505.0,0.00152636]
[1739927193056,0.307058,95506.0,95505.0,0.00052636]
[1739927193253,0.307058,95506.0,95505.0,0.00152636]
[1739927193705,0.307058,95506.0,95505.0,0.00052636]
[1739927193906,0.209408,95508.0,95505.0,0.00152636]
[1739927194251,0.157058,95506.0,95505.0,0.00152636]
[1739927195353,0.157058,95506.0,95505.0,0.00052636]
[1739927196306,0.209408,95508.0,95505.0,0.00052636]
[1739927196882,0.157058,95506.0,95505.0,0.00052636]
[1739927197284,0.17347632,95506.0,95505.0,3.6e-07]
[1739927199362,0.32647632,95506.0,95505.0,3.6e-07]
[1739927199725,0.32647632,95506.0,95488.0,0.010327]
[1739927199726,0.15,95504.0,95488.0,0.010327]
[1739927200077,0.157086,95489.0,95488.0,0.01901946]
[1739927200323,0.157086,95489.0,95488.0,0.010327]
[1739927200766,0.17350532,95489.0,95488.0,0.010327]
[1739927200944,0.17350532,95489.0,95488.0,0.01901946]
[1739927202306,0.157086,95489.0,95488.0,0.02001946]
[1739927202741,0.157086,95489.0,95488.0,0.03801946]
[1739927205376,0.17350487,95489.0,95488.0,0.03801946]
[1739927208250,0.18122114,95489.0,95488.0,0.03801946]
[1739927209476,0.16990114,95489.0,95488.0,0.03844506]
[1739927210520,0.16990114,95489.0,95488.0,0.02044506]
[1739927210936,0.16990114,95489.0,95488.0,0.03844506]
[1739927211107,0.16990114,95489.0,95488.0,0.02044506]
[1739927213065,0.30348227,95489.0,95488.0,0.02044506]
[1739927213277,0.145766,95489.0,95488.0,0.03844506]
[1739927213479,0.209415,95504.0,95503.0,0.00869246]
[1739927213681,0.366476,95504.0,95503.0,0.00869246]
[1739927213882,0.516476,95504.0,95503.0,0.00869246]
[1739927214817,0.307066,95501.0,95500.0,0.02669246]
[1739927215025,0.157081,95492.0,95491.0,0.05519246]
[1739927215653,0.157081,95492.0,95491.0,0.07319246]
[1739927216078,0.17349885,95492.0,95491.0,0.07319246]
[1739927218243,0.17349885,95492.0,95491.0,0.05719246]
[1739927218686,0.17349885,95492.0,95491.0,0.07319246]
[1739927218925,0.17349885,95492.0,95491.0,0.05819246]
[1739927220641,0.17349885,95492.0,95491.0,0.07619246]
[1739927220858,0.17323704,95492.0,95491.0,0.07619246]
[1739927221074,0.17323704,95492.0,95491.0,0.05819246]
[1739927221297,0.17323704,95492.0,95491.0,0.07619246]
[1739927223148,0.15681919,95492.0,95491.0,0.05819246]
[1739927224613,0.15681919,95492.0,95491.0,0.07619246]
[1739927224814,0.15681919,95492.0,95491.0,0.05819246]
[1739927225408,0.15681919,95492.0,95491.0,0.07619246]
[1739927227506,0.17323712,95492.0,95491.0,0.07619246]
[1739927233144,0.15681919,95492.0,95491.0,0.07619246]
[1739927234465,0.15,95493.0,95492.0,0.018]
[1739927235251,0.307079,95493.0,95492.0,0.018]
[1739927236023,0.32349667,95493.0,95492.0,0.021]
[1739927237590,0.32349667,95493.0,95492.0,0.003]
[1739927239033,0.307081,95492.0,95491.0,0.0184256]
[1739927240471,0.309081,95492.0,95491.0,0.0184256]
[1739927247439,0.32550009,95492.0,95491.0,0.0184256]
[1739927249262,0.32550009,95492.0,95491.0,0.0004256]
[1739927249484,0.32550009,95492.0,95491.0,0.0184256]
[1739927252754,0.32350009,95492.0,95491.0,0.0184256]
[1739927252884,0.32350009,95492.0,95491.0,0.0004256]
[1739927253088,0.309081,95492.0,95491.0,0.02711806]
[1739927253504,0.311081,95492.0,95491.0,0.02711806]
[1739927256216,0.32749892,95492.0,95491.0,0.02711806]
[1739927257953,0.32749892,95492.0,95491.0,0.1108627]
[1739927258171,0.02041792,95492.0,95491.0,0.1108627]
[1739927258346,0.17749892,95492.0,95491.0,0.1108627]
[1739927258922,0.17349892,95492.0,95491.0,0.1108627]
[1739927259388,0.17349892,95492.0,95491.0,0.1118627]
[1739927260512,0.17349892,95492.0,95491.0,0.1886627]
[1739927263151,0.0008512,95494.0,95493.0,0.02669246]
[1739927263367,0.0008512,95494.0,95493.0,0.15889246]
[1739927263780,0.0008512,95494.0,95493.0,0.31597146]
[1739927265030,0.0008512,95494.0,95493.0,0.15989246]
[1739927265444,0.1579282,95494.0,95493.0,0.15989246]
[1739927265655,0.0008512,95494.0,95493.0,0.15989246]
[1739927265972,0.1579282,95494.0,95493.0,0.15989246]
[1739927266562,0.0008512,95494.0,95493.0,0.15989246]
[1739927267188,0.1579282,95494.0,95493.0,0.15989246]
[1739927267534,0.17434543,95494.0,95493.0,0.15989246]
[1739927268363,0.01726843,95494.0,95493.0,0.15989246]
[1739927269503,0.02510099,95494.0,95493.0,0.15989246]
[1739927270545,0.02510099,95494.0,95493.0,0.31697146]
[1739927271168,0.02510099,95494.0,95493.0,0.15989246]
[1739927271358,0.18217799,95494.0,95493.0,0.15989246]
[1739927271592,0.02510099,95494.0,95493.0,0.15989246]
[1739927271804,0.02510099,95494.0,95493.0,0.16031806]
[1739927272226,0.01726843,95494.0,95493.0,0.16031806]
[1739927272648,0.01726843,95494.0,95493.0,0.15931806]
[1739927272858,0.01726843,95494.0,95493.0,0.16231806]
[1739927273067,0.00868135,95494.0,95493.0,0.15931806]
[1739927273282,0.16575835,95494.0,95493.0,0.15931806]
[1739927273485,0.16575835,95494.0,95493.0,0.16331806]
[1739927274439,0.16575835,95494.0,95493.0,0.1546256]
[1739927274642,0.16575835,95494.0,95493.0,0.01311806]
[1739927275491,0.31575835,95494.0,95493.0,0.01311806]
[1739927275911,0.31575835,95494.0,95493.0,0.02711806]
[1739927276136,0.33217656,95494.0,95493.0,0.00911806]
[1739927276339,0.33217656,95494.0,95493.0,0.01211806]
[1739927276566,0.33217656,95494.0,95493.0,0.00911806]
[1739927277000,0.01741821,95494.0,95493.0,0.0004256]
[1739927277207,0.17449521,95494.0,95493.0,0.0004256]
[1739927277615,0.17349521,95494.0,95493.0,0.0004256]
[1739927278159,0.17449521,95494.0,95493.0,0.0004256]
[1739927280332,0.17449521,95494.0,95493.0,0.0184256]
[1739927280541,0.17349521,95494.0,95493.0,0.0004256]
[1739927280981,0.17449521,95494.0,95493.0,0.0004256]
[1739927281732,0.157077,95494.0,95493.0,0.0004256]
[1739927282184,0.158077,95494.0,95493.0,0.0004256]
[1739927282392,0.157077,95494.0,95493.0,0.0004256]
[1739927283687,0.1589282,95494.0,95493.0,0.0004256]
[1739927283994,0.1579282,95494.0,95493.0,0.0004256]
[1739927285297,0.1589282,95494.0,95493.0,0.0004256]
[1739927285769,0.3079282,95494.0,95493.0,0.0004256]
[1739927286179,0.31580496,95494.0,95493.0,0.0004256]
[1739927287142,0.31680496,95494.0,95493.0,0.0004256]
[1739927287254,0.31580496,95494.0,95493.0,0.0004256]
[1739927287945,0.31680496,95494.0,95493.0,0.0004256]
[1739927288365,0.31780496,95494.0,95493.0,0.0004256]
[1739927289011,0.31780496,95494.0,95491.0,0.0004256]
[1739927289012,0.307081,95492.0,95491.0,2e-07]
[1739927289220,0.307081,95492.0,95488.0,8e-07]
[1739927289221,0.307086,95489.0,95488.0,8e-07]
[1739927290361,0.31489497,95489.0,95488.0,8e-07]
[1739927291852,0.33731611,95489.0,95488.0,8e-07]
[1739927293483,0.32089497,95489.0,95488.0,8e-07]
[1739927293782,0.313086,95489.0,95488.0,8e-07]
[1739927294742,0.307086,95489.0,95488.0,8e-07]
[1739927294946,0.313086,95489.0,95488.0,8e-07]
[1739927295940,0.32088388,95489.0,95488.0,8e-07]
[1739927296464,0.33730527,95489.0,95488.0,8e-07]
[1739927298047,0.36497359,95489.0,95488.0,8e-07]
[1739927298247,0.33730527,95489.0,95488.0,8e-07]
[1739927300234,0.15,95488.0,95482.0,4e-07]
[1739927300539,0.307096,95483.0,95482.0,4e-07]
[1739927301901,0.307117,95470.0,95469.0,0.0004256]
[1739927302116,0.307117,95470.0,95469.0,0.00046941]
[1739927302815,0.32354007,95470.0,95469.0,0.00046941]
[1739927303270,0.31491538,95470.0,95469.0,0.00046941]
[1739927303668,0.3227539,95470.0,95469.0,0.00046941]
[1739927304072,0.3247539,95470.0,95469.0,0.00046941]
[1739927304591,0.3247539,95470.0,95469.0,0.00916187]
[1739927304830,0.16891538,95470.0,95469.0,0.05566187]
[1739927305043,0.16891538,95470.0,95469.0,0.23950651]
[1739927305178,0.01179838,95470.0,95469.0,0.39662551]
[1739927305383,0.00779838,95470.0,95469.0,0.39662592]
[1739927306452,0.0008512,95494.0,95493.0,0.15189246]
[1739927307411,0.01726933,95494.0,95493.0,0.15189246]
[1739927310735,0.01726933,95494.0,95493.0,0.23668415]
[1739927310963,0.01726933,95494.0,95493.0,0.2356371]
[1739927312944,0.01726933,95494.0,95493.0,0.3927161]
[1739927313154,0.0008512,95494.0,95493.0,0.3927161]
[1739927316422,0.0008512,95494.0,95493.0,0.39271651]
[1739927317308,0.0008512,95494.0,95493.0,0.23563751]
[1739927317484,0.01726872,95494.0,95493.0,0.23563751]
[1739927317938,0.01726872,95494.0,95493.0,0.39271651]
[1739927319180,0.01726872,95494.0,95493.0,0.41571651]
[1739927320856,0.01826872,95494.0,95493.0,0.41571651]
[1739927321689,0.01826872,95494.0,95493.0,0.43639126]
[1739927323223,0.0018512,95494.0,95493.0,0.43639126]
[1739927326177,0.01826762,95494.0,95493.0,0.43639126]
[1739927329362,0.01826762,95494.0,95493.0,0.41571651]
[1739927335576,0.0018512,95494.0,95493.0,0.41571651]
[1739927338901,0.01826766,95494.0,95493.0,0.41571651]
[1739927340900,0.01726766,95494.0,95493.0,1.06392016]
[1739927342272,0.01826766,95494.0,95493.0,1.06692016]
[1739927342482,0.07932113,95520.0,95495.0,0.0828]
[1739927342700,0.209367,95526.0,95498.0,0.081]
[1739927342869,0.12084252,95530.0,95524.0,0.018]
[1739927342870,0.209369,95525.0,95524.0,0.018]
[1739927343630,0.22539566,95525.0,95524.0,0.018]
[1739927343834,0.38242166,95525.0,95524.0,0.018]
[1739927344038,0.38255342,95525.0,95524.0,0.018]
[1739927345828,0.39896777,95525.0,95524.0,0.018]
[1739927346058,0.39996777,95525.0,95524.0,0.018]
[1739927349470,0.39896777,95525.0,95524.0,0.018]
[1739927349674,0.24194177,95525.0,95524.0,0.018]
[1739927349920,0.24294177,95525.0,95524.0,0.018]
[1739927350649,0.39996777,95525.0,95524.0,0.00869246]
[1739927351302,0.352931,95522.0,95521.0,0.00869246]
[1739927351863,0.157064,95502.0,95501.0,0.00869287]
[1739927352307,0.157064,95502.0,95501.0,4.1e-07]
[1739927352521,0.157064,95502.0,95501.0,0.00869287]
[1739927352754,0.17348002,95502.0,95501.0,0.00869287]
[1739927353204,0.157064,95502.0,95501.0,0.00869287]
[1739927354080,0.157061,95505.0,95501.0,0.00869287]
[1739927354314,0.27787752,95520.0,95519.0,0.02669246]
[1739927354517,0.157035,95520.0,95519.0,0.02669246]
[1739927356339,0.0766,95520.0,95514.0,0.00869246]
[1739927356550,0.19744252,95520.0,95519.0,0.001]
[1739927356743,0.233635,95520.0,95519.0,0.00969246]
[1739927357337,0.25004978,95520.0,95519.0,0.00969246]
[1739927357538,0.25004978,95520.0,95519.0,0.00869246]
[1739927358015,0.09301478,95520.0,95501.0,4.1e-07]
[1739927358235,0.12084252,95511.0,95510.0,0.00869246]
[1739927358444,0.2138573,95520.0,95519.0,0.00869246]
[1739927358655,0.25004978,95520.0,95519.0,0.00869246]
[1739927360041,0.17344978,95520.0,95519.0,0.00869246]
[1739927360242,0.15,95523.0,95519.0,0.00869246]
[1739927360493,0.01641477,95520.0,95519.0,0.00869246]
[1739927360673,0.17344977,95520.0,95519.0,0.02669246]
[1739927362287,0.157035,95520.0,95519.0,0.02669246]
[1739927365448,0.17344927,95520.0,95519.0,0.02669246]
[1739927366364,0.17344927,95520.0,95519.0,0.02754326]
[1739927371212,0.17344927,95520.0,95519.0,0.02854326]
[1739927371828,0.157035,95520.0,95519.0,0.02854326]
[1739927376913,0.157035,95520.0,95519.0,0.01054326]
[1739927377241,0.157035,95520.0,95519.0,0.02854326]
[1739927378068,0.0004254,95522.0,95519.0,0.02854326]
[1739927378315,0.157034,95521.0,95520.0,0.02669246]
[1739927381353,0.157034,95521.0,95520.0,0.02769246]
[1739927381580,0.157034,95521.0,95520.0,0.02669246]
[1739927381819,0.17344792,95521.0,95520.0,0.02969246]
[1739927383139,0.157034,95521.0,95520.0,0.02969246]
[1739927383695,0.0004254,95522.0,95520.0,0.02969246]
[1739927383897,0.0004254,95522.0,95521.0,0.02669246]
[1739927386054,0.0004254,95522.0,95521.0,0.18372546]
[1739927386263,0.0004254,95522.0,95521.0,0.26392546]
[1739927386443,0.01683865,95522.0,95521.0,0.26392546]
[1739927386643,0.01683865,95522.0,95521.0,0.26692546]
[1739927387559,0.01683865,95522.0,95521.0,0.26692587]
[1739927388994,0.01683865,95522.0,95521.0,0.10989287]
[1739927390302,0.17386965,95522.0,95521.0,0.10989287]
[1739927390514,0.17386965,95522.0,95521.0,0.01169287]
[1739927391663,0.17386965,95522.0,95521.0,0.02969287]
[1739927392275,0.17386965,95522.0,95521.0,0.02100041]
[1739927392483,0.17386965,95522.0,95521.0,0.02969287]
[1739927392692,0.17386965,95522.0,95521.0,0.02100041]
[1739927392910,0.17386965,95522.0,95521.0,0.02969287]
[1739927393140,0.1574564,95522.0,95521.0,0.02969287]
[1739927393475,0.1574564,95522.0,95521.0,0.02669287]
[1739927393683,0.1574564,95522.0,95521.0,0.02669246]
[1739927394014,0.1574564,95522.0,95521.0,0.02769246]
[1739927394522,0.1574564,95522.0,95521.0,0.02669246]
[1739927394970,0.1574564,95522.0,95521.0,0.02769246]
[1739927395643,0.30703,95523.0,95522.0,0.00869246]
[1739927396137,0.30703,95523.0,95522.0,0.018]
[1739927396575,0.30703,95523.0,95522.0,0.02669246]
[1739927397028,0.30703,95523.0,95522.0,0.02769246]
[1739927397546,0.32344436,95523.0,95522.0,0.02769246]
[1739927397798,0.12073253,95523.0,95522.0,0.02669246]
[1739927398052,0.17444436,95523.0,95522.0,0.02669246]
[1739927399395,0.17344436,95523.0,95522.0,0.02669246]
[1739927399594,0.17344436,95523.0,95522.0,0.02769246]
[1739927401959,0.17386976,95523.0,95522.0,0.02769246]
[1739927402383,0.17386976,95523.0,95522.0,0.02669246]
[1739927402594,0.17386976,95523.0,95522.0,0.00869246]
[1739927402796,0.17386976,95523.0,95522.0,0.00969246]
[1739927403131,0.17386976,95523.0,95522.0,0.00869246]
[1739927403332,0.17386976,95523.0,95522.0,0.02669246]
[1739927403774,0.17486976,95523.0,95522.0,0.02669246]
[1739927403988,0.1584554,95523.0,95522.0,0.02669246]
[1739927405487,0.1574554,95523.0,95522.0,0.02669246]
[1739927407529,0.1574554,95523.0,95522.0,0.02769246]
[1739927408549,0.17386964,95523.0,95522.0,0.02769246]
[1739927408797,0.18169365,95523.0,95522.0,0.02669246]
[1739927409017,0.18169365,95523.0,95522.0,0.02769246]
[1739927409658,0.17386964,95523.0,95522.0,0.02769246]
[1739927410154,0.18169263,95523.0,95522.0,0.01637246]
[1739927413095,0.31527839,95523.0,95522.0,0.01637246]
[1739927414733,0.31527839,95523.0,95522.0,0.01722326]
[1739927417406,0.31527839,95523.0,95522.0,0.01622326]
[1739927417610,0.33169272,95523.0,95522.0,0.01622326]
[1739927418855,0.33169272,95523.0,95522.0,0.01722326]
[1739927419604,0.01641433,95523.0,95522.0,0.01722326]
[1739927420438,0.17344433,95523.0,95522.0,0.01722326]
[1739927422555,0.17344433,95523.0,95522.0,0.09262326]
[1739927422812,0.17344433,95523.0,95522.0,0.14142326]
[1739927423209,0.15703,95523.0,95522.0,0.14142326]
[1739927426844,0.1574554,95523.0,95522.0,0.14142326]
[1739927427818,0.17386926,95523.0,95522.0,0.14142326]
[1739927432341,0.18169289,95523.0,95522.0,0.14142326]
[1739927433184,0.16527903,95523.0,95522.0,0.14142326]
[1739927433383,0.1574554,95523.0,95522.0,0.14142326]
[1739927433963,0.16528003,95523.0,95522.0,0.14142326]
[1739927434388,0.31528003,95523.0,95522.0,0.14142326]
[1739927434721,0.16528003,95523.0,95522.0,0.14142326]
[1739927436040,0.00825003,95523.0,95522.0,0.14142326]
[1739927437491,0.1816934,95523.0,95522.0,0.14142326]
[1739927438140,0.0246634,95523.0,95522.0,0.14142326]
[1739927438569,0.1816934,95523.0,95522.0,0.14142326]
[1739927441894,0.3316934,95523.0,95522.0,0.14142326]